fUST/lending_fUST_20250827
["ID","MTS","AMOUNT","RATE_DAILY","PERIOD"]
[381608995,1756295508234,-480.0,0.00023835,2]
[381608996,1756295508243,-518.17,0.00023835,2]
[381608997,1756295508252,-604.0,0.00023835,2]
[381608998,1756295508262,-500.09,0.00023835,2]
[381608999,1756295508272,-480.0,0.00023835,2]
[381609000,1756295508281,-480.0,0.00023835,2]
[381609001,1756295508291,-480.0,0.00023835,2]
[381609002,1756295508300,-480.0,0.00023835,2]
[381609003,1756295508311,-480.0,0.00023835,2]
[381609004,1756295508320,-480.0,0.00023835,2]
[381609005,1756295508329,-603.45,0.00023835,2]
[381609006,1756295508339,-480.0,0.00023835,2]
[381609007,1756295508349,-480.0,0.00023835,2]
[381609008,1756295508358,-525.14,0.00023835,2]
[381609009,1756295508368,-480.0,0.00023835,2]
[381609010,1756295508377,-546.45,0.00023835,2]
[381609011,1756295508387,-480.0,0.00023835,2]
[381609012,1756295508397,-480.0,0.00023835,2]
[381609013,1756295508407,-495.46,0.00023835,2]
[381609014,1756295508416,-494.23,0.00023835,2]
[381609015,1756295508426,-480.0,0.00023835,2]
[381609016,1756295508435,-480.0,0.00023835,2]
[381609017,1756295508445,-752.07,0.00023835,2]
[381609018,1756295508455,-522.4,0.00023835,2]
[381609019,1756295508606,-480.0,0.00023835,2]
[381609020,1756295508617,-480.0,0.00023835,2]
[381609021,1756295508626,-1143.26,0.00023835,2]
[381609022,1756295508635,-698.99,0.00023835,2]
[381609023,1756295508646,-606.55,0.00023835,2]
[381609024,1756295508656,-480.0,0.00023835,2]
[381609025,1756295508666,-755.57,0.00023835,2]
[381609026,1756295508676,-740.17,0.00023835,2]
[381609027,1756295508686,-480.0,0.00023835,2]
[381609028,1756295508696,-839.06,0.00023835,2]
[381609029,1756295508708,-558.04,0.00023835,2]
[381609030,1756295508718,-480.0,0.00023835,2]
[381609031,1756295508728,-496.5430868,0.00023835,2]
[381609032,1756295508739,-480.0,0.00023835,2]
[381609033,1756295508749,-576.43,0.00023835,2]
[381609034,1756295508759,-480.0,0.00023835,2]
[381609035,1756295508770,-527.26,0.00023835,2]
[381609036,1756295508780,-564.31,0.00023835,2]
[381609037,1756295508790,-525.48,0.00023835,2]
[381609038,1756295508800,-480.0,0.00023835,2]
[381609039,1756295508811,-480.0,0.00023835,2]
[381609040,1756295508821,-350.89430028,0.00023835,2]
[381609041,1756295508831,-706.22,0.00023835,2]
[381609042,1756295508843,-480.0,0.00023835,2]
[381609043,1756295508856,-480.0,0.00023835,2]
[381609044,1756295508866,-550.82,0.00023835,2]
[381609045,1756295508875,-926.56,0.00023835,2]
[381609046,1756295508886,-924.56,0.00023835,2]
[381609047,1756295508897,-480.0,0.00023835,2]
[381609048,1756295508906,-480.0,0.00023835,2]
[381609049,1756295508915,-625.16,0.00023835,2]
[381609050,1756295508925,-480.0,0.00023835,2]
[381609051,1756295508937,-480.0,0.00023835,2]
[381609052,1756295508948,-480.0,0.00023835,2]
[381609053,1756295508962,-480.0,0.00023835,2]
[381609054,1756295508972,-613.93,0.00023835,2]
[381609055,1756295508983,-480.0,0.00023835,2]
[381609056,1756295508993,-480.0,0.00023835,2]
[381609057,1756295509003,-480.0,0.00023835,2]
[381609058,1756295509014,-413.46387046,0.00023835,2]
[381609059,1756295509024,-732.55,0.00023835,2]
[381609060,1756295509034,-480.0,0.00023835,2]
[381609061,1756295509044,-480.0,0.00023835,2]
[381609062,1756295509054,-480.0,0.00023835,2]
[381609063,1756295509064,-480.0,0.00023835,2]
[381609064,1756295509073,-502.03,0.00023835,2]
[381609065,1756295509083,-9670.89,0.00023835,2]
[381609066,1756295509094,-513.59,0.00023835,2]
[381609067,1756295509104,-524.29,0.00023835,2]
[381609068,1756295509114,-480.0,0.00023835,2]
[381609069,1756295509123,-1383.3,0.00023835,2]
[381609070,1756295509134,-546.52354366,0.00023835,2]
[381609071,1756295509143,-500.0,0.00023835,2]
[381609072,1756295509155,-480.0,0.00023835,2]
[381609073,1756295509164,-655.08,0.00023835,2]
[381609074,1756295509174,-195.58,0.00023835,2]
[381609075,1756295509184,-480.0,0.00023835,2]
[381609076,1756295509193,-480.0,0.00023835,2]
[381609077,1756295509203,-480.0,0.00023835,2]
[381609078,1756295509213,-480.0,0.00023835,2]
[381609079,1756295509222,-480.0,0.00023835,2]
[381609080,1756295509232,-480.0,0.00023835,2]
[381609081,1756295509241,-665.82,0.00023835,2]
[381609082,1756295509250,-480.0,0.00023835,2]
[381609083,1756295509260,-480.0,0.00023835,2]
[381609084,1756295509270,-480.0,0.00023835,2]
[381609085,1756295509279,-480.0,0.00023835,2]
[381609086,1756295509288,-480.0,0.00023835,2]
[381609087,1756295509297,-737.63,0.00023835,2]
[381609088,1756295509308,-480.0,0.00023835,2]
[381609089,1756295509318,-1275.55,0.00023835,2]
[381609090,1756295509328,-941.67,0.00023835,2]
[381609091,1756295509340,-480.0,0.00023835,2]
[381609092,1756295509350,-527.84,0.00023835,2]
[381609093,1756295509359,-480.0,0.00023835,2]
[381609094,1756295509368,-1377.54,0.00023835,2]
[381609095,1756295509377,-480.0,0.00023835,2]
[381609096,1756295509387,-544.18,0.00023835,2]
[381609097,1756295509396,-2005.67,0.00023835,2]
[381609098,1756295509406,-605.81,0.00023835,2]
[381609099,1756295509415,-480.0,0.00023835,2]
[381609100,1756295509424,-486.23,0.00023835,2]
[381609101,1756295509434,-480.0,0.00023835,2]
[381609102,1756295509444,-480.0,0.00023835,2]
[381609103,1756295509453,-480.0,0.00023835,2]
[381609104,1756295509462,-572.5,0.00023835,2]
[381609105,1756295509471,-1511.66,0.00023835,2]
[381609106,1756295509480,-1734.3,0.00023835,2]
[381609107,1756295509490,-3755.94,0.00023835,2]
[381609108,1756295509499,-535.47,0.00023835,2]
[381609109,1756295509508,-831.34,0.00023835,2]
[381609110,1756295509518,-480.0,0.00023835,2]
[381609111,1756295509527,-480.0,0.00023835,2]
[381609112,1756295509536,-707.25,0.00023835,2]
[381609113,1756295509545,-2885.3,0.00023835,2]
[381609114,1756295509555,-480.0,0.00023835,2]
[381609115,1756295509564,-667.09,0.00023835,2]
[381609116,1756295509573,-480.0,0.00023835,2]
[381609117,1756295509582,-507.46530895,0.00023835,2]
[381609118,1756295509591,-1275.32,0.00023835,2]
[381609119,1756295509601,-480.0,0.00023835,2]
[381609120,1756295509610,-562.26,0.00023835,2]
[381609121,1756295509621,-489.14,0.00023835,2]
[381609122,1756295509630,-3844.16,0.00023835,2]
[381609123,1756295509640,-480.0,0.00023835,2]
[381609124,1756295509649,-1682.7,0.00023835,2]
[381609125,1756295509659,-1992.53,0.00023835,2]
[381609126,1756295509668,-480.0,0.00023835,2]
[381609127,1756295509678,-480.0,0.00023835,2]
[381609128,1756295509688,-1281.38,0.00023835,2]
[381609129,1756295509697,-480.0,0.00023835,2]
[381609130,1756295509707,-480.0,0.00023835,2]
[381609131,1756295509716,-480.0,0.00023835,2]
[381609132,1756295509725,-833.25,0.00023835,2]
[381609133,1756295509735,-480.0,0.00023835,2]
[381609134,1756295509744,-501.1626051,0.00023835,2]
[381609135,1756295509754,-480.0,0.00023835,2]
[381609136,1756295509764,-480.0,0.00023835,2]
[381609137,1756295509773,-480.0,0.00023835,2]
[381609138,1756295509782,-480.0,0.00023835,2]
[381609139,1756295509794,-480.0,0.00023835,2]
[381609140,1756295509803,-219.45185306,0.00023835,2]
[381609141,1756295509812,-480.0,0.00023835,2]
[381609142,1756295509822,-480.0,0.00023835,2]
[381609143,1756295509831,-480.0,0.00023835,2]
[381609144,1756295509840,-480.0,0.00023835,2]
[381609145,1756295509854,-480.0,0.00023835,2]
[381609146,1756295509865,-824.64,0.00023835,2]
[381609147,1756295509875,-1267.55,0.00023835,2]
[381609148,1756295509884,-1138.38,0.00023835,2]
[381609149,1756295509895,-934.3,0.00023835,2]
[381609150,1756295509904,-480.0,0.00023835,2]
[381609151,1756295509913,-480.0,0.00023835,2]
[381609152,1756295509923,-495.31,0.00023835,2]
[381609153,1756295509933,-480.0,0.00023835,2]
[381609154,1756295509942,-776.73,0.00023835,2]
[381609155,1756295509951,-573.6286281,0.00023835,2]
[381609156,1756295509962,-480.0,0.00023835,2]
[381609157,1756295509971,-480.0,0.00023835,2]
[381609158,1756295509981,-480.0,0.00023835,2]
[381609159,1756295509991,-480.0,0.00023835,2]
[381609160,1756295510000,-557.28,0.00023835,2]
[381609161,1756295510009,-535.56,0.00023835,2]
[381609162,1756295510018,-200.04,0.00023835,2]
[381609163,1756295510027,-480.0,0.00023835,2]
[381609164,1756295510037,-639.28,0.00023835,2]
[381609165,1756295510046,-480.0,0.00023835,2]
[381609166,1756295510055,-480.0,0.00023835,2]
[381609167,1756295510065,-480.0,0.00023835,2]
[381609168,1756295510074,-1717.2,0.00023835,2]
[381609169,1756295510084,-480.0,0.00023835,2]
[381609170,1756295510093,-2626.17,0.00023835,2]
[381609171,1756295510103,-480.0,0.00023835,2]
[381609172,1756295510112,-932.54,0.00023835,2]
[381609173,1756295510121,-484.63,0.00023835,2]
[381609174,1756295510130,-717.77,0.00023835,2]
[381609175,1756295510140,-1227.94,0.00023835,2]
[381609176,1756295510149,-607.71,0.00023835,2]
[381609177,1756295510158,-480.0,0.00023835,2]
[381609178,1756295510168,-5360.08,0.00023835,2]
[381609179,1756295510177,-636.41,0.00023835,2]
[381609180,1756295510187,-480.0,0.00023835,2]
[381609181,1756295510196,-7837.73,0.00023835,2]
[381609182,1756295510206,-525.03,0.00023835,2]
[381609183,1756295510216,-784.27,0.00023835,2]
[381609184,1756295510225,-974.32,0.00023835,2]
[381609185,1756295510234,-480.0,0.00023835,2]
[381609186,1756295510244,-480.0,0.00023835,2]
[381609187,1756295510253,-480.0,0.00023835,2]
[381609188,1756295510262,-2604.37,0.00023835,2]
[381609189,1756295510272,-480.0,0.00023835,2]
[381609190,1756295510281,-480.0,0.00023835,2]
[381609191,1756295510290,-251.13491911,0.00023835,2]
[381609192,1756295510300,-480.0,0.00023835,2]
[381609193,1756295510310,-486.44,0.00023835,2]
[381609194,1756295510319,-480.0,0.00023835,2]
[381609195,1756295510329,-1424.05,0.00023835,2]
[381609196,1756295510339,-480.0,0.00023835,2]
[381609197,1756295510348,-480.0,0.00023835,2]
[381609198,1756295510358,-850.03,0.00023835,2]
[381609199,1756295510368,-480.0,0.00023835,2]
[381609200,1756295510377,-480.0,0.00023835,2]
[381609201,1756295510386,-480.0,0.00023835,2]
[381609202,1756295510396,-2434.53,0.00023835,2]
[381609203,1756295510405,-480.0,0.00023835,2]
[381609204,1756295510414,-512.47,0.00023835,2]
[381609205,1756295510423,-480.0,0.00023835,2]
[381609206,1756295510433,-1080.79,0.00023835,2]
[381609207,1756295510442,-753.46,0.00023835,2]
[381609208,1756295510451,-527.3,0.00023835,2]
[381609209,1756295510461,-480.0,0.00023835,2]
[381609210,1756295510471,-1150.08,0.00023835,2]
[381609211,1756295510480,-289.97713007,0.00023835,2]
[381609212,1756295510490,-480.0,0.00023835,2]
[381609213,1756295510499,-480.0,0.00023835,2]
[381609214,1756295510510,-372.44006009,0.00023835,2]
[381609215,1756295510520,-480.0,0.00023835,2]
[381609216,1756295510529,-716.6,0.00023835,2]
[381609217,1756295510539,-480.0,0.00023835,2]
[381609218,1756295510549,-480.0,0.00023835,2]
[381609219,1756295510559,-336.5844405,0.00023835,2]
[381609220,1756295510568,-480.0,0.00023835,2]
[381609221,1756295510578,-584.2124569,0.00023835,2]
[381609222,1756295510587,-480.0,0.00023835,2]
[381609223,1756295510596,-799.46,0.00023835,2]
[381609224,1756295510606,-528.16,0.00023835,2]
[381609225,1756295510616,-5059.84,0.00023835,2]
[381609226,1756295510626,-480.0,0.00023835,2]
[381609227,1756295510635,-518.25,0.00023835,2]
[381609228,1756295510644,-582.84,0.00023835,2]
[381609229,1756295510654,-556.45,0.00023835,2]
[381609230,1756295510664,-1272.66,0.00023835,2]
[381609231,1756295510674,-684.68,0.00023835,2]
[381609232,1756295510683,-480.0,0.00023835,2]
[381609233,1756295510692,-480.0,0.00023835,2]
[381609234,1756295510702,-1000.0,0.000239,2]
[381609235,1756295510716,-1000.0,0.000239,2]
[381609236,1756295510725,-1000.0,0.000239,2]
[381609237,1756295510735,-1000.0,0.000239,2]
[381609238,1756295510743,-1000.0,0.000239,2]
[381609239,1756295510753,-1000.0,0.000239,2]
[381609240,1756295510763,-3310.03217048,0.00023944,2]
[381609241,1756295510773,-260.0,0.00023999,2]
[381609242,1756295510783,-1676.37885683,0.00024,2]
[381609243,1756295510792,-160.0,0.00024,7]
[381609244,1756295510802,-160.0,0.00024,7]
[381609245,1756295510811,-160.0,0.00024,7]
[381609246,1756295510820,-160.0,0.00024,7]
[381609247,1756295510830,-232.59867797,0.00024,7]
[381609248,1756295510839,-217.23771399,0.00024,7]
[381609249,1756295510851,-845.298898,0.00024,7]
[381609250,1756295510862,-973.0,0.00024088,2]
[381609251,1756295510872,-728.82,0.00024109,2]
[381609252,1756295510881,-1786.79,0.00024109,2]
[381609253,1756295510891,-533.03443124,0.00024109,2]
[381609254,1756295510900,-480.0,0.00024109,2]
[381609255,1756295510910,-480.0,0.00024109,2]
[381609256,1756295510919,-2132.63,0.00024109,2]
[381609257,1756295510930,-567.43,0.00024109,2]
[381609258,1756295510939,-480.0,0.00024109,2]
[381609259,1756295510948,-480.0,0.00024109,2]
[381609260,1756295510959,-480.0,0.00024109,2]
[381609261,1756295510968,-480.0,0.00024109,2]
[381609262,1756295510977,-599.6,0.00024109,2]
[381609263,1756295510986,-480.0,0.00024109,2]
[381609264,1756295510995,-480.0,0.00024109,2]
[381609265,1756295511004,-555.01,0.00024109,2]
[381609266,1756295511014,-480.0,0.00024109,2]
[381609267,1756295511023,-480.0,0.00024109,2]
[381609268,1756295511032,-480.0,0.00024109,2]
[381609269,1756295511042,-608.26,0.00024109,2]
[381609270,1756295511051,-480.0,0.00024109,2]
[381609271,1756295511060,-788.63,0.00024109,2]
[381609272,1756295511070,-733.12,0.00024109,2]
[381609273,1756295511079,-491.85,0.00024109,2]
[381609274,1756295511088,-523.6,0.00024109,2]
[381609275,1756295511097,-4246.52,0.00024109,2]
[381609276,1756295511105,-598.52,0.00024109,2]
[381609277,1756295511115,-972.86,0.00024109,2]
[381609278,1756295511255,-568.62,0.00024109,2]
[381609279,1756295511265,-480.0,0.00024109,2]
[381609280,1756295511275,-480.0,0.00024109,2]
[381609281,1756295511283,-480.0,0.00024109,2]
[381609282,1756295511293,-573.08,0.00024109,2]
[381609283,1756295511302,-543.52,0.00024109,2]
[381609284,1756295511311,-506.41,0.00024109,2]
[381609285,1756295511321,-480.0,0.00024109,2]
[381609286,1756295511331,-556.45,0.00024109,2]
[381609287,1756295511341,-480.0,0.00024109,2]
[381609288,1756295511352,-480.0,0.00024109,2]
[381609289,1756295511362,-480.0,0.00024109,2]
[381609290,1756295511371,-480.0,0.00024109,2]
[381609291,1756295511380,-743.34,0.00024109,2]
[381609292,1756295511390,-614.77,0.00024109,2]
[381609293,1756295511399,-480.0,0.00024109,2]
[381609294,1756295511408,-480.0,0.00024109,2]
[381609295,1756295511417,-480.0,0.00024109,2]
[381609296,1756295511426,-480.0,0.00024109,2]
[381609297,1756295511436,-1174.5,0.00024109,2]
[381609298,1756295511445,-480.0,0.00024109,2]
[381609299,1756295511455,-480.0,0.00024109,2]
[381609300,1756295511464,-480.0,0.00024109,2]
[381609301,1756295511473,-480.0,0.00024109,2]
[381609302,1756295511483,-480.0,0.00024109,2]
[381609303,1756295511492,-480.0,0.00024109,2]
[381609304,1756295511501,-824.65,0.00024109,2]
[381609305,1756295511511,-402.37625589,0.00024109,2]
[381609306,1756295511520,-480.0,0.00024109,2]
[381609307,1756295511529,-897.27,0.00024109,2]
[381609308,1756295511540,-771.07,0.00024109,2]
[381609309,1756295511550,-480.0,0.00024109,2]
[381609310,1756295511559,-480.0,0.00024109,2]
[381609311,1756295511569,-480.0,0.00024109,2]
[381609312,1756295511578,-504.69,0.00024109,2]
[381609313,1756295511588,-1094.25,0.00024109,2]
[381609314,1756295511597,-480.0,0.00024109,2]
[381609315,1756295511607,-480.0,0.00024109,2]
[381609316,1756295511616,-480.0,0.00024109,2]
[381609317,1756295511625,-480.0,0.00024109,2]
[381609318,1756295511635,-1176.51,0.00024109,2]
[381609319,1756295511644,-833.03,0.00024109,2]
[381609320,1756295511653,-480.0,0.00024109,2]
[381609321,1756295511662,-483.29,0.00024109,2]
[381609322,1756295511672,-480.0,0.00024109,2]
[381609323,1756295511682,-650.46,0.00024109,2]
[381609324,1756295511700,-536.02,0.00024109,2]
[381609325,1756295511711,-480.0,0.00024109,2]
[381609326,1756295511721,-2316.32,0.00024109,2]
[381609327,1756295511730,-480.0,0.00024109,2]
[381609328,1756295511740,-633.07,0.00024109,2]
[381609329,1756295511749,-480.0,0.00024109,2]
[381609330,1756295511758,-480.0,0.00024109,2]
[381609331,1756295511768,-480.0,0.00024109,2]
[381609332,1756295511777,-480.0,0.00024109,2]
[381609333,1756295511787,-692.43,0.00024109,2]
[381609334,1756295511797,-617.59,0.00024109,2]
[381609335,1756295511806,-480.0,0.00024109,2]
[381609336,1756295511815,-518.17,0.00024109,2]
[381609337,1756295511825,-604.0,0.00024109,2]
[381609338,1756295511834,-500.09,0.00024109,2]
[381609339,1756295511843,-480.0,0.00024109,2]
[381609340,1756295511856,-480.0,0.00024109,2]
[381609341,1756295511865,-480.0,0.00024109,2]
[381609342,1756295511874,-480.0,0.00024109,2]
[381609343,1756295511885,-480.0,0.00024109,2]
[381609344,1756295511895,-480.0,0.00024109,2]
[381609345,1756295511905,-603.45,0.00024109,2]
[381609346,1756295511915,-480.0,0.00024109,2]
[381609347,1756295511926,-480.0,0.00024109,2]
[381609348,1756295511935,-525.14,0.00024109,2]
[381609349,1756295511946,-480.0,0.00024109,2]
[381609350,1756295511957,-546.45,0.00024109,2]
[381609351,1756295511969,-480.0,0.00024109,2]
[381609352,1756295511978,-480.0,0.00024109,2]
[381609353,1756295511987,-495.46,0.00024109,2]
[381609354,1756295511997,-494.23,0.00024109,2]
[381609355,1756295512006,-480.0,0.00024109,2]
[381609356,1756295512016,-480.0,0.00024109,2]
[381609357,1756295512026,-752.07,0.00024109,2]
[381609358,1756295512035,-522.4,0.00024109,2]
[381609359,1756295512046,-480.0,0.00024109,2]
[381609360,1756295512055,-480.0,0.00024109,2]
[381609361,1756295512065,-1143.26,0.00024109,2]
[381609362,1756295512074,-698.99,0.00024109,2]
[381609363,1756295512084,-606.55,0.00024109,2]
[381609364,1756295512093,-380.4173895,0.00024109,2]
[381609365,1756295512103,-755.57,0.00024109,2]
[381609366,1756295512112,-740.17,0.00024109,2]
[381609367,1756295512121,-480.0,0.00024109,2]
[381609368,1756295512131,-839.06,0.00024109,2]
[381609369,1756295512140,-558.04,0.00024109,2]
[381609370,1756295512151,-480.0,0.00024109,2]
[381609371,1756295512160,-480.0,0.00024109,2]
[381609372,1756295512170,-576.43,0.00024109,2]
[381609373,1756295512179,-480.0,0.00024109,2]
[381609374,1756295512189,-527.26,0.00024109,2]
[381609375,1756295512198,-564.31,0.00024109,2]
[381609376,1756295512209,-525.48,0.00024109,2]
[381609377,1756295512219,-480.0,0.00024109,2]
[381609378,1756295512228,-480.0,0.00024109,2]
[381609379,1756295512237,-706.22,0.00024109,2]
[381609380,1756295512247,-480.0,0.00024109,2]
[381609381,1756295512257,-480.0,0.00024109,2]
[381609382,1756295512266,-550.82,0.00024109,2]
[381609383,1756295512276,-926.56,0.00024109,2]
[381609384,1756295512285,-924.56,0.00024109,2]
[381609385,1756295512295,-480.0,0.00024109,2]
[381609386,1756295512304,-480.0,0.00024109,2]
[381609387,1756295512314,-625.16,0.00024109,2]
[381609388,1756295512323,-480.0,0.00024109,2]
[381609389,1756295512333,-480.0,0.00024109,2]
[381609390,1756295512342,-480.0,0.00024109,2]
[381609391,1756295512352,-480.0,0.00024109,2]
[381609392,1756295512361,-613.93,0.00024109,2]
[381609393,1756295512371,-480.0,0.00024109,2]
[381609394,1756295512381,-480.0,0.00024109,2]
[381609395,1756295512391,-603.30330872,0.00024109,2]
[381609396,1756295512400,-732.55,0.00024109,2]
[381609397,1756295512410,-480.0,0.00024109,2]
[381609398,1756295512419,-480.0,0.00024109,2]
[381609399,1756295512428,-480.0,0.00024109,2]
[381609400,1756295512437,-480.0,0.00024109,2]
[381609401,1756295512446,-502.03,0.00024109,2]
[381609402,1756295512457,-513.59,0.00024109,2]
[381609403,1756295512467,-9670.89,0.00024109,2]
[381609404,1756295512476,-524.29,0.00024109,2]
[381609405,1756295512486,-480.0,0.00024109,2]
[381609406,1756295512496,-1383.3,0.00024109,2]
[381609407,1756295512506,-500.0,0.00024109,2]
[381609408,1756295512516,-519.04408931,0.00024109,2]
[381609409,1756295512525,-655.08,0.00024109,2]
[381609410,1756295512534,-539.72312408,0.00024109,2]
[381609411,1756295512545,-480.0,0.00024109,2]
[381609412,1756295512555,-480.0,0.00024109,2]
[381609413,1756295512564,-480.0,0.00024109,2]
[381609414,1756295512574,-480.0,0.00024109,2]
[381609415,1756295512583,-480.0,0.00024109,2]
[381609416,1756295512592,-665.82,0.00024109,2]
[381609417,1756295512602,-480.0,0.00024109,2]
[381609418,1756295512611,-480.0,0.00024109,2]
[381609419,1756295512621,-480.0,0.00024109,2]
[381609420,1756295512630,-480.0,0.00024109,2]
[381609421,1756295512639,-480.0,0.00024109,2]
[381609422,1756295512649,-737.63,0.00024109,2]
[381609423,1756295512658,-480.0,0.00024109,2]
[381609424,1756295512667,-1275.55,0.00024109,2]
[381609425,1756295512677,-941.67,0.00024109,2]
[381609426,1756295512686,-480.0,0.00024109,2]
[381609427,1756295512696,-527.84,0.00024109,2]
[381609428,1756295512707,-480.0,0.00024109,2]
[381609429,1756295512716,-1377.54,0.00024109,2]
[381609430,1756295512725,-480.0,0.00024109,2]
[381609431,1756295512734,-544.18,0.00024109,2]
[381609432,1756295512744,-2005.67,0.00024109,2]
[381609433,1756295512753,-605.81,0.00024109,2]
[381609434,1756295512762,-480.0,0.00024109,2]
[381609435,1756295512771,-486.23,0.00024109,2]
[381609436,1756295512781,-480.0,0.00024109,2]
[381609437,1756295512790,-480.0,0.00024109,2]
[381609438,1756295512799,-480.0,0.00024109,2]
[381609439,1756295512809,-572.5,0.00024109,2]
[381609440,1756295512818,-1511.66,0.00024109,2]
[381609441,1756295512827,-1734.3,0.00024109,2]
[381609442,1756295512836,-3755.94,0.00024109,2]
[381609443,1756295512845,-831.34,0.00024109,2]
[381609444,1756295512859,-480.0,0.00024109,2]
[381609445,1756295512870,-480.0,0.00024109,2]
[381609446,1756295512880,-707.25,0.00024109,2]
[381609447,1756295512889,-2885.3,0.00024109,2]
[381609448,1756295512898,-480.0,0.00024109,2]
[381609449,1756295512908,-667.09,0.00024109,2]
[381609450,1756295512918,-480.0,0.00024109,2]
[381609451,1756295512927,-1275.32,0.00024109,2]
[381609452,1756295512937,-480.0,0.00024109,2]
[381609453,1756295512947,-562.26,0.00024109,2]
[381609454,1756295512958,-489.14,0.00024109,2]
[381609455,1756295512968,-3844.16,0.00024109,2]
[381609456,1756295512977,-480.0,0.00024109,2]
[381609457,1756295512987,-1682.7,0.00024109,2]
[381609458,1756295512996,-1992.53,0.00024109,2]
[381609459,1756295513005,-480.0,0.00024109,2]
[381609460,1756295513015,-480.0,0.00024109,2]
[381609461,1756295513025,-1281.38,0.00024109,2]
[381609462,1756295513034,-480.0,0.00024109,2]
[381609463,1756295513043,-480.0,0.00024109,2]
[381609464,1756295513053,-480.0,0.00024109,2]
[381609465,1756295513063,-833.25,0.00024109,2]
[381609466,1756295513073,-480.0,0.00024109,2]
[381609467,1756295513083,-480.0,0.00024109,2]
[381609468,1756295513093,-480.0,0.00024109,2]
[381609469,1756295513102,-480.0,0.00024109,2]
[381609470,1756295513112,-480.0,0.00024109,2]
[381609472,1756295513122,-480.0,0.00024109,2]
[381609473,1756295513131,-480.0,0.00024109,2]
[381609474,1756295513140,-480.0,0.00024109,2]
[381609475,1756295513150,-480.0,0.00024109,2]
[381609476,1756295513159,-480.0,0.00024109,2]
[381609478,1756295513169,-480.0,0.00024109,2]
[381609479,1756295513178,-824.64,0.00024109,2]
[381609480,1756295513188,-1267.55,0.00024109,2]
[381609481,1756295513198,-1138.38,0.00024109,2]
[381609482,1756295513210,-934.3,0.00024109,2]
[381609483,1756295513219,-480.0,0.00024109,2]
[381609484,1756295513228,-480.0,0.00024109,2]
[381609485,1756295513238,-495.31,0.00024109,2]
[381609486,1756295513247,-480.0,0.00024109,2]
[381609487,1756295513257,-776.73,0.00024109,2]
[381609488,1756295513266,-480.0,0.00024109,2]
[381609489,1756295513275,-480.0,0.00024109,2]
[381609490,1756295513284,-480.0,0.00024109,2]
[381609491,1756295513293,-480.0,0.00024109,2]
[381609492,1756295513303,-557.28,0.00024109,2]
[381609493,1756295513312,-535.56,0.00024109,2]
[381609494,1756295513322,-200.04,0.00024109,2]
[381609495,1756295513331,-480.0,0.00024109,2]
[381609496,1756295513342,-639.28,0.00024109,2]